Workbook

Sheet Renoveringskostnader
B1: KALKYLBLADET KOSTNADER FÖR KÖKSRENOVERING
B3: Kategori | C3: Artiklar | D3: Kvantitet | E3: Beräknad kostnad | F3: Faktisk kostnad | G3: Total beräknad kostnad | H3: Total verklig kostnad
B4: Skåp | C4: Underskåp: Modul, standard (kvantitet i meter) | D4: 25 | E4: 5.00 kr | G4: =Data[[#This Row],[Kvantitet]]*Data[[#This Row],[Beräknad kostnad]] -> 125 kr | H4: =Data[[#This Row],[Kvantitet]]*Data[[#This Row],[Faktisk kostnad]] -> 0 kr
B5: Skåp | C5: Överskåp: Modul, standard (kvantitet i meter) | D5: 25 | E5: 3.50 kr | G5: =Data[[#This Row],[Kvantitet]]*Data[[#This Row],[Beräknad kostnad]] -> 88 kr | H5: =Data[[#This Row],[Kvantitet]]*Data[[#This Row],[Faktisk kostnad]] -> 0 kr
B6: Rengöringsutrustning | C6: Diskmaskin: Standard | D6: 1 | E6: 250.00 kr | G6: =Data[[#This Row],[Kvantitet]]*Data[[#This Row],[Beräknad kostnad]] -> 250 kr | H6: =Data[[#This Row],[Kvantitet]]*Data[[#This Row],[Faktisk kostnad]] -> 0 kr
B7: Rengöringsutrustning | C7: Avfallskvarn: Standard | D7: 1 | E7: 175.00 kr | G7: =Data[[#This Row],[Kvantitet]]*Data[[#This Row],[Beräknad kostnad]] -> 175 kr | H7: =Data[[#This Row],[Kvantitet]]*Data[[#This Row],[Faktisk kostnad]] -> 0 kr
B8: Spis/ugnar | C8: Spis: Inbyggnadsmodell, standard | D8: 1 | E8: 375.00 kr | G8: =Data[[#This Row],[Kvantitet]]*Data[[#This Row],[Beräknad kostnad]] -> 375 kr | H8: =Data[[#This Row],[Kvantitet]]*Data[[#This Row],[Faktisk kostnad]] -> 0 kr
B9: Spis/ugnar | C9: Mikrovågsugn: Standard | D9: 1 | E9: 300.00 kr | G9: =Data[[#This Row],[Kvantitet]]*Data[[#This Row],[Beräknad kostnad]] -> 300 kr | H9: =Data[[#This Row],[Kvantitet]]*Data[[#This Row],[Faktisk kostnad]] -> 0 kr
B10: Bänkar | C10: Solid Surface (kvantitet i meter) | D10: 23 | E10: 10.00 kr | G10: =Data[[#This Row],[Kvantitet]]*Data[[#This Row],[Beräknad kostnad]] -> 230 kr | H10: =Data[[#This Row],[Kvantitet]]*Data[[#This Row],[Faktisk kostnad]] -> 0 kr
B11: Dörrar/luckor | C11: Insida: Massiv faner | D11: 1 | E11: 65.00 kr | G11: =Data[[#This Row],[Kvantitet]]*Data[[#This Row],[Beräknad kostnad]] -> 65 kr | H11: =Data[[#This Row],[Kvantitet]]*Data[[#This Row],[Faktisk kostnad]] -> 0 kr
B12: Extra | C12: Extra: Direkt varmvatten, standard | D12: 1 | E12: 120.00 kr | G12: =Data[[#This Row],[Kvantitet]]*Data[[#This Row],[Beräknad kostnad]] -> 120 kr | H12: =Data[[#This Row],[Kvantitet]]*Data[[#This Row],[Faktisk kostnad]] -> 0 kr
B13: Extra | C13: Extra: Tvålautomat | D13: 1 | E13: 40.00 kr | G13: =Data[[#This Row],[Kvantitet]]*Data[[#This Row],[Beräknad kostnad]] -> 40 kr | H13: =Data[[#This Row],[Kvantitet]]*Data[[#This Row],[Faktisk kostnad]] -> 0 kr
B14: Kranar | C14: Vattenkran: Spak, standard | D14: 1 | E14: 130.00 kr | G14: =Data[[#This Row],[Kvantitet]]*Data[[#This Row],[Beräknad kostnad]] -> 130 kr | H14: =Data[[#This Row],[Kvantitet]]*Data[[#This Row],[Faktisk kostnad]] -> 0 kr
B15: Golv | C15: Laminat (kvantitet i kvadratmeter) | D15: 165 | E15: 3.50 kr | G15: =Data[[#This Row],[Kvantitet]]*Data[[#This Row],[Beräknad kostnad]] -> 578 kr | H15: =Data[[#This Row],[Kvantitet]]*Data[[#This Row],[Faktisk kostnad]] -> 0 kr
B16: Tvättmaskin/torktumlare | C16: Tvättmaskin: Standard | D16: 1 | E16: 500.00 kr | G16: =Data[[#This Row],[Kvantitet]]*Data[[#This Row],[Beräknad kostnad]] -> 500 kr | H16: =Data[[#This Row],[Kvantitet]]*Data[[#This Row],[Faktisk kostnad]] -> 0 kr
B17: Tvättmaskin/torktumlare | C17: Torktumlare: Standard | D17: 1 | E17: 375.00 kr | G17: =Data[[#This Row],[Kvantitet]]*Data[[#This Row],[Beräknad kostnad]] -> 375 kr | H17: =Data[[#This Row],[Kvantitet]]*Data[[#This Row],[Faktisk kostnad]] -> 0 kr
B18: Belysning | C18: Belysning: Infällda spotlights | D18: 4 | E18: 35.00 kr | G18: =Data[[#This Row],[Kvantitet]]*Data[[#This Row],[Beräknad kostnad]] -> 140 kr | H18: =Data[[#This Row],[Kvantitet]]*Data[[#This Row],[Faktisk kostnad]] -> 0 kr
B19: Kylskåp | C19: Kylskåp: Fristående, deluxe | D19: 1 | E19: 1,200.00 kr | G19: =Data[[#This Row],[Kvantitet]]*Data[[#This Row],[Beräknad kostnad]] -> 1,200 kr | H19: =Data[[#This Row],[Kvantitet]]*Data[[#This Row],[Faktisk kostnad]] -> 0 kr
B20: Diskho | C20: Dubbel, rostfritt stål, deluxe | D20: 1 | E20: 125.00 kr | G20: =Data[[#This Row],[Kvantitet]]*Data[[#This Row],[Beräknad kostnad]] -> 125 kr | H20: =Data[[#This Row],[Kvantitet]]*Data[[#This Row],[Faktisk kostnad]] -> 0 kr
B21: Ventilation | C21: Köksfläkt: Utsug, standard | D21: 1 | E21: 180.00 kr | G21: =Data[[#This Row],[Kvantitet]]*Data[[#This Row],[Beräknad kostnad]] -> 180 kr | H21: =Data[[#This Row],[Kvantitet]]*Data[[#This Row],[Faktisk kostnad]] -> 0 kr
B22: Väggar | C22: Wallboard (kvantitet i kvadratmeter) | D22: 70 | E22: 2.00 kr | G22: =Data[[#This Row],[Kvantitet]]*Data[[#This Row],[Beräknad kostnad]] -> 140 kr | H22: =Data[[#This Row],[Kvantitet]]*Data[[#This Row],[Faktisk kostnad]] -> 0 kr
B23: Fönster | C23: Skjutmodell | D23: 2 | E23: 120.00 kr | G23: =Data[[#This Row],[Kvantitet]]*Data[[#This Row],[Beräknad kostnad]] -> 240 kr | H23: =Data[[#This Row],[Kvantitet]]*Data[[#This Row],[Faktisk kostnad]] -> 0 kr
B24: Övrigt | G24: =Data[[#This Row],[Kvantitet]]*Data[[#This Row],[Beräknad kostnad]] -> 0 kr | H24: =Data[[#This Row],[Kvantitet]]*Data[[#This Row],[Faktisk kostnad]] -> 0 kr
B25: Summa | E25: =SUBTOTAL(109,Data[Beräknad kostnad]) -> 4,014.00 kr | F25: =SUBTOTAL(109,Data[Faktisk kostnad]) -> 0.00 kr | G25: =SUBTOTAL(109,Data[Total beräknad kostnad]) -> 5,375.00 kr | H25: =SUBTOTAL(109,Data[Total verklig kostnad]) -> 0.00 kr
B26: Delsumma | G26: =SUBTOTAL(109,Data[Total beräknad kostnad]) -> 5,375.00 kr | H26: =SUBTOTAL(109,Data[Total verklig kostnad]) -> 0.00 kr
B27: Oförutsedda kostnader – lägg till 30 % | G27: =G26*0.3 -> 1,612.50 kr | H27: =H26*0.3 -> 0.00 kr
B28: Summa | G28: =SUM(G26:G27) -> 6,987.50 kr | H28: =SUM(H26:H27) -> 0.00 kr
